Cogmind - Beta 14 @@@ ROGUE MODE // 2024.11.28 @ 15:31:34 Player: Nika Jay Result: Destroyed by P-80 Master with Gamma Rifle Performance ------------- Evolutions (6) 3000 Regions Visited (14) 2800 Robots Destroyed (192) 960 Value Destroyed (6181) 6181 Prototype IDs (11) 220 Alien Tech Used (0) 0 Bonus (1505) 1505 TOTAL SCORE: 14666 Bonus ------- High Alert Combat Kills 627 Follower Combat Kills 42 Entered Garrisons 200 Registered with UFD 300 Met Warlord at Base 500 MAIN.C Attacked Warlord 500 Friendly Fire -664 Cogmind --------- Core Integrity 0/1150 Matter 290/300 Energy 100/100 System Corruption 1% Temperature Cool (0) Movement Core (100) Ox1 Location -4/Warlord Parts ------- > --- POWER (2) -------- (None) > --- PROPULSION (4) --- (None) > --- UTILITY (10) ----- 0b10 Decoder Chip [Looter] Makeshift Salvage Targeting Computer Improved Melee Analysis Suite Advanced Target Analyzer Hacking Suite > --- WEAPON (3) ------- Backup Laser III Backup Laser III > --- INVENTORY (5) ---- Dispersion Rifle Dispersion Rifle Quantum Rifle Railgun Chainsword Peak State ------------ > --- POWER ------------ Neutrino Core > --- PROPULSION ------- Gyrokinetic Inverter Linear Gravjet Cooled Gravmag System Improved Linear Gravjet > --- UTILITY ---------- Advanced Cryofiber Web Improved Heat Sink Makeshift Salvage Targeting Computer Advanced Target Analyzer Advanced Actuator Array Hacking Suite Mini Drone Bay Mini Drone Bay Advanced Drone Bay > --- WEAPON ----------- KE Penetrator Railgun Phasing Sabre > --- INVENTORY -------- Compact Wheel Hardened Medium Armor Plating Heavy Ion Cannon Heavy Phase Cannon Precision Grenade Launcher [Rating: 107] Favorites ----------- Power Fission Core Engine Improved Ion Engine Power Core Fission Core Reactor Cold Fusion Reactor Propulsion Light Treads Treads Light Treads Leg Carbon-fiber Leg Wheel Compact Wheel Hover Unit Cooled Gravmag System Flight Unit Field Propulsion Drive Utility Huge Storage Unit Device Improved Heat Sink Storage Huge Storage Unit Processor Improved Signal Interpreter Hackware Hacking Suite Protection Improved Light Armor Plating Weapon Improved Medium Laser Energy Gun Improved Medium Laser Energy Cannon Plasma Cannon Ballistic Gun Autogun Launcher Advanced EMP Blaster Special Weapon Plasma Cutter Slashing Weapon Phasing Sabre Build | -11 -10 -10 -9 -8 -8 -7 -7 -7 -7 -5 -4 -4 -4 -4 ------- Run | Yrd Mat Min Mat Mat Gar Fac Sto Rec Scr Fac Fac Upp Upp War Slots Evolved 12 | . . . 2 2 . 2 . . . 4 2 . . . Power 1 | . . . . . . . . . . 1 . . . . Propulsion 2 | . . . 1 1 . . . . . . . . . . Utility 8 | . . . 1 1 . 2 . . . 3 1 . . . Weapon 1 | . . . . . . . . . . . 1 . . . Parts Attached 266 | 7 1 . 12 23 18 41 45 8 11 80 9 6 3 2 Power 33 | 1 . . 1 5 3 3 4 1 1 14 . . . . Engine 18 | 1 . . 1 5 3 2 1 . . 5 . . . . Core 10 | . . . . . . 1 3 1 1 4 . . . . Reactor 5 | . . . . . . . . . . 5 . . . . Propulsion 81 | 2 . . 3 8 8 15 10 4 3 26 2 . . . Treads 29 | . . . 1 3 6 3 3 2 2 9 . . . . Leg 7 | 2 . . . . . 4 . . . 1 . . . . Wheel 39 | . . . 2 4 2 8 7 2 1 13 . . . . Hover 4 | . . . . . . . . . . 2 2 . . . Flight 2 | . . . . 1 . . . . . 1 . . . . Utility 99 | 2 1 . 6 7 2 15 20 2 6 25 5 5 2 1 Device 48 | 1 . . 4 3 . 9 12 1 1 10 5 1 1 . Storage 5 | 1 1 . 1 1 . . . . . . . . 1 . Processor 7 | . . . . . . 1 1 . . 1 . 4 . . Hackware 6 | . . . . 1 . . 1 . 2 2 . . . . Protection 33 | . . . 1 2 2 5 6 1 3 12 . . . 1 Artifact . | . . . . . . . . . . . . . . . Weapon 53 | 2 . . 2 3 5 8 11 1 1 15 2 1 1 1 Energy Gun 29 | . . . 1 1 2 3 7 1 1 11 . . 1 1 Energy Cannon 2 | . . . . . . . . . . 2 . . . . Ballistic Gun 16 | 2 . . 1 2 3 5 . . . 1 2 . . . Ballistic Cannon . | . . . . . . . . . . . . . . . Launcher 3 | . . . . . . . 2 . . 1 . . . . Special Weapon 2 | . . . . . . . 2 . . . . . . . Impact Weapon . | . . . . . . . . . . . . . . . Slashing Weapon 1 | . . . . . . . . . . . . 1 . . Piercing Weapon . | . . . . . . . . . . . . . . . Special Melee Weapon . | . . . . . . . . . . . . . . . Unidentified Prototypes 8 | . . . 2 1 . . 4 . . 1 . . . . Parts Lost 79 | . . . 3 1 9 6 15 3 . 28 . 1 9 4 Power 15 | . . . . . 1 1 2 1 . 7 . . 1 2 Propulsion 20 | . . . 1 1 3 . 4 . . 6 . . 3 2 Utility 27 | . . . . . 1 2 6 1 . 13 . 1 3 . Weapon 17 | . . . 2 . 4 3 3 1 . 2 . . 2 . Highest Loss Streak 12 | . . . 2 1 9 3 6 3 . 12 . 1 7 4 To Critical Strikes 1 | . . . 1 . . . . . . . . . . . Average Slot Usage (%) 89 | . 100 100 87 97 97 90 87 97 99 84 56 82 66 51 Engine 4 | . 14 14 11 9 8 6 . . . 3 . . . 5 Core 2 | . . . . . . . 6 7 7 1 5 5 1 . Reactor 1 | . . . . . . . . . . 4 . . . . Treads 9 | . . . 1 15 17 3 7 13 15 8 . . . . Leg 4 | . 28 28 18 . . 21 . . . . . . . . Wheel 10 | . . . 3 17 17 4 10 16 15 10 . . . . Hover 1 | . . . . . . . . . . . 19 21 12 5 Device 11 | . 14 14 10 9 9 11 15 7 7 14 15 24 13 4 Storage 6 | . 14 14 11 9 9 7 7 7 7 4 . . 2 . Processor 5 | . . . . . . 2 10 10 7 4 . 11 21 21 Hackware 7 | . . . . 8 9 7 6 7 11 7 5 5 5 5 Protection 6 | . . . 8 9 8 6 4 10 9 6 4 . . 2 Energy Gun 9 | . . . . 8 14 5 13 14 15 9 . . 2 6 Ballistic Gun 4 | . 28 28 21 8 2 9 1 . . . 7 10 2 . Peak Build Rating 107 | 7 7 7 15 32 32 43 53 43 47 83 84 107 100 59 Average Rating 44 | 6 7 7 10 25 27 35 45 35 39 70 60 96 72 44 On Entrance 32 | . 7 7 7 14 32 24 42 37 36 46 31 83 92 32 Naked Turns . | . . . . . . . . . . . . . . . Heaviest Build 139 | 14 19 19 36 102 102 107 103 98 103 139 41 52 41 20 Greatest Support 64 | 20 20 20 26 32 42 64 64 64 32 42 41 41 41 16 Greatest Overweight (x) 9 | . . . 2 6 5 9 3 3 3 8 1 1 2 1 Average Overweight (x) 2 | . . . . 2 4 1 2 2 3 3 . . . . Largest Inventory Capacity 25 | 8 10 10 15 25 25 25 25 25 25 25 5 5 10 5 Average Capacity 22 | 7 9 10 10 24 25 25 25 25 25 23 5 5 7 5 Most Carried 25 | 4 5 7 15 25 25 25 25 25 25 25 5 5 10 5 Average Carried 21 | 2 4 6 9 23 24 24 24 24 24 22 4 4 7 4 Final Capacity 25 | 8 10 10 15 25 25 25 25 25 25 25 5 5 5 5 Final Carried 25 | 4 5 7 15 25 25 25 25 25 25 25 5 5 5 5 Class Distribution -------------------- 67% | Scavenger-Mutant 22% | Mutant 6% | Hacker-Mutant Dominant Class ---------------- Mutant | -10/Materials Mutant | -10/Mines Mutant | -9/Materials Scavenger-Mutant | -8/Materials Scavenger-Mutant | -8/Garrison Scavenger-Mutant | -7/Factory Scavenger-Mutant | -7/Storage Scavenger-Mutant | -7/Recycling Scavenger-Mutant | -7/Scraptown Scavenger-Mutant | -5/Factory Mutant | -4/Factory Mutant | -4/Upper Caves Derelict-Mutant | -4/Upper Caves Derelict-Mutant | -4/Warlord Resources | -11 -10 -10 -9 -8 -8 -7 -7 -7 -7 -5 -4 -4 -4 -4 ----------- Run | Yrd Mat Min Mat Mat Gar Fac Sto Rec Scr Fac Fac Upp Upp War Matter Collected 3966 | 342 5 39 218 508 235 691 484 115 10 1035 . 255 29 . Remotely . | . . . . . . . . . . . . . . . Salvage Created 9904 | 172 55 39 288 1084 711 1141 1673 558 . 4082 . 42 59 . Parts 382 | 15 3 5 17 63 40 60 53 20 . 103 . 1 2 . Haulers Intercepted 6 | . 1 . . 2 . . 2 . . 1 . . . . Recyclers Shooed 35 | 1 1 1 1 2 . 4 1 4 . 20 . . . . Parts Field Recycled . | . . . . . . . . . . . . . . . Retrieved Matter . | . . . . . . . . . . . . . . . Parts Self-Destructed 4 | . . . . . . . . . . . . 4 . . Prevented . | . . . . . . . . . . . . . . . Kills | -11 -10 -10 -9 -8 -8 -7 -7 -7 -7 -5 -4 -4 -4 -4 ------- Run | Yrd Mat Min Mat Mat Gar Fac Sto Rec Scr Fac Fac Upp Upp War Combat Hostiles Destroyed 131 | . . 3 6 15 17 15 27 3 . 45 . . . . Guns 120 | . . 3 6 15 17 15 22 2 . 40 . . . . Classes Destroyed 16 | 2 1 1 2 4 2 . . . . 2 . 1 1 . Worker 13 | . . . 1 1 . 1 3 . . 7 . . . . Builder 4 | . . . . 1 . . 1 . . 2 . . . . Tunneler 6 | 5 . . . 1 . . . . . . . . . . Hauler 6 | . 1 . . 2 . . 2 . . 1 . . . . Recycler 28 | 1 . . 1 4 . 7 1 5 . 9 . . . . Operator 1 | . . . . 1 . . . . . . . . . . Drone 3 | . . . . . . . . . . . . 2 1 . Watcher 3 | . . . . 1 . 1 . . . 1 . . . . Swarmer 37 | . . 3 3 7 5 10 3 . . 6 . . . . Grunt 48 | . . . . 6 5 2 15 . . 20 . . . . Brawler 2 | . . . . . . . . . . 2 . . . . Duelist 3 | . . . . . . . . . . 3 . . . . Sentry 21 | . . . 3 2 4 . 7 2 . 3 . . . . Hunter 2 | . . . . . 2 . . . . . . . . . Programmer 18 | . . . . . 1 3 2 1 . 11 . . . . Decomposer 2 | . . . . . . . . . . . . 1 1 . Samaritan 1 | . . . . . . . . . . . . . 1 . Best Kill Streak 9 | 2 1 2 2 4 3 5 9 6 . 5 . . . . Combat Bots Only 7 | . . 2 2 4 3 5 7 2 . 5 . . . . Max Kills in Single Turn 2 | 1 1 2 1 2 1 2 1 1 . 1 . 1 1 . Gunslinging 1 | . . 1 . 1 . 1 . . . . . . . . Exploded . | . . . . . . . . . . . . . . . Melee . | . . . . . . . . . . . . . . . Uniques/NPCs Destroyed . | . . . . . . . . . . . . . . . Combat | -11 -10 -10 -9 -8 -8 -7 -7 -7 -7 -5 -4 -4 -4 -4 -------- Run | Yrd Mat Min Mat Mat Gar Fac Sto Rec Scr Fac Fac Upp Upp War Hostile Shots Fired 1791 | . 4 9 117 79 156 131 488 76 . 512 . 68 124 27 Missed 520 | . 3 1 43 20 35 35 156 29 . 116 . 28 42 12 Damage Taken 18382 | . 10 65 702 505 1597 1620 3279 353 . 7522 . 841 1577 311 Core 2916 | . 10 15 124 66 223 150 444 45 . 672 . 127 887 153 Absorbed by Shields 1155 | . . . 158 132 . . . . . 865 . . . . Redirected to Shielding 102 | . . . . . . . 102 . . . . . . . Ignored by Resistances 13 | . . . . . . . . . . 13 . . . . Regen/Repaired (Parts) 842 | . . . . . . 123 286 . 14 419 . . . . Core Remaining (%) 57 | 100 . 90 69 . 47 . . . 8 32 . . . . Volleys Fired 705 | 18 7 6 44 60 72 70 114 23 . 289 2 . . . Largest 2 | 2 1 2 2 2 2 2 2 2 . 2 2 . . . Hottest 154 | 40 20 40 40 79 126 132 125 111 . 154 68 . . . Shots Fired 1381 | 36 7 12 88 120 144 139 226 46 . 559 4 . . . Gun 1369 | 36 7 12 88 120 144 139 226 46 . 547 4 . . . Cannon 12 | . . . . . . . . . . 12 . . . . Launcher . | . . . . . . . . . . . . . . . Special . | . . . . . . . . . . . . . . . Kinetic 389 | 36 7 12 88 60 49 81 15 . . 37 4 . . . Thermal 992 | . . . . 60 95 58 211 46 . 522 . . . . Explosive . | . . . . . . . . . . . . . . . Electromagnetic . | . . . . . . . . . . . . . . . Robot Hit Streak 60 | 5 5 4 16 13 17 14 60 12 . 31 1 . . . Robot Miss Streak 7 | 4 1 3 5 4 7 5 4 2 . 5 2 . . . Penetration Max 1 | . . . . . . . . . . 1 1 . . . Secondary Targets 23 | . . 1 2 1 2 3 5 . . 9 . . . . Max Gunslinging Chain 1 | . . 1 1 1 1 1 1 . . 1 . . . . Shots Hit Robots 995 | 17 6 6 57 87 102 83 190 36 . 400 1 7 3 . Core Hits 396 | 9 4 5 17 37 41 35 64 12 . 164 1 4 3 . Critical Kills 1 | . . . . 1 . . . . . . . . . . Critical Parts Destroyed 1 | . . . . . . . . . . 1 . . . . Critical Strikes 56 | . . . . 6 . 2 16 3 . 28 . 1 . . Burn 53 | . . . . 5 . 2 16 3 . 27 . . . . Destroy 2 | . . . . 1 . . . . . 1 . . . . Sever 1 | . . . . . . . . . . . . 1 . . Melee Attacks 26 | . . . . . . . . . . . . 21 5 . Impact . | . . . . . . . . . . . . . . . Slashing 26 | . . . . . . . . . . . . 21 5 . Piercing . | . . . . . . . . . . . . . . . Sneak Attacks 3 | . . . . . . . . . . . . 1 2 . Combat Hostiles . | . . . . . . . . . . . . . . . Follow-up Attacks . | . . . . . . . . . . . . . . . Damage Inflicted 18540 | 185 60 62 573 1407 1446 1554 3576 667 . 8357 43 360 250 . Guns 17710 | 183 48 62 573 1407 1446 1547 3576 667 . 8158 43 . . . Cannons 199 | . . . . . . . . . . 199 . . . . Explosions . | . . . . . . . . . . . . . . . Melee 610 | . . . . . . . . . . . . 360 250 . Ramming 21 | 2 12 . . . . 7 . . . . . . . . Kinetic 3703 | 183 48 62 573 603 411 847 140 . . 793 43 . . . Thermal 14206 | . . . . 804 1035 700 3436 667 . 7564 . . . . Explosive . | . . . . . . . . . . . . . . . Electromagnetic . | . . . . . . . . . . . . . . . Impact . | . . . . . . . . . . . . . . . Slashing 610 | . . . . . . . . . . . . 360 250 . Piercing . | . . . . . . . . . . . . . . . Highest Corruption 33 | . 8 8 . . . 4 1 1 . 33 . . . 1 Average Corruption 7 | . 6 8 . . . 2 1 1 . 12 . . . 1 Corruption Purged 5 | . . . . . . 5 . . . . . . . . Corruption Blocked . | . . . . . . . . . . . . . . . Effects 156 | . 4 3 . . . 3 13 . . 133 . . . . Message Errors 25 | . . . . . . 2 1 . . 22 . . . . Matter Fused 33 | . 1 2 . . . 1 2 . . 27 . . . . Heat Flow Errors 31 | . 3 1 . . . . 3 . . 24 . . . . Energy Discharges 19 | . . . . . . . 1 . . 18 . . . . Parts Rejected 8 | . . . . . . . . . . 8 . . . . Data Loss (minor) 12 | . . . . . . . 2 . . 10 . . . . Data Loss (major) 6 | . . . . . . . 1 . . 5 . . . . Misfires 2 | . . . . . . . . . . 2 . . . . Alerts 3 | . . . . . . . 2 . . 1 . . . . Weapon Failures 17 | . . . . . . . 1 . . 16 . . . . Overload Shots . | . . . . . . . . . . . . . . . Overflow Damage 68 | . . . . . . . . . . . . 68 . . Projectiles . | . . . . . . . . . . . . . . . Explosions . | . . . . . . . . . . . . . . . Melee 68 | . . . . . . . . . . . . 68 . . Knockbacks . | . . . . . . . . . . . . . . . Impact . | . . . . . . . . . . . . . . . Kinetic . | . . . . . . . . . . . . . . . Secondary . | . . . . . . . . . . . . . . . Self-Inflicted Damage . | . . . . . . . . . . . . . . . Shots . | . . . . . . . . . . . . . . . Rammed . | . . . . . . . . . . . . . . . Targets Rammed 5 | 1 3 . . . . 1 . . . . . . . . Kicked 5 | 1 3 . . . . 1 . . . . . . . . Crushed . | . . . . . . . . . . . . . . . Highest Temperature 350 | . 250 291 10 350 237 308 344 16 . 297 . . 19 . Average Temperature 75 | . 113 165 3 93 52 82 106 7 . 61 . . 7 . Received Heat Transfer 4610 | . 6 . 130 164 432 108 1368 72 . 1726 . 180 376 48 Effects 9 | . 1 3 . . . 1 2 . . 2 . . . . Energy Bleed 1 | . . . . . . 1 . . . . . . . . Interference 6 | . 1 3 . . . . . . . 2 . . . . Matter Decay 1 | . . . . . . . 1 . . . . . . . Short Circuit 1 | . . . . . . . 1 . . . . . . . Siege Activations . | . . . . . . . . . . . . . . . Robots Corrupted . | . . . . . . . . . . . . . . . Combat Hostiles . | . . . . . . . . . . . . . . . Parts Fried . | . . . . . . . . . . . . . . . Impact Corruptions . | . . . . . . . . . . . . . . . Robots Melted 12 | . . . . . . . 5 1 . 6 . . . . Combat Hostiles 11 | . . . . . . . 5 1 . 5 . . . . Parts Melted 87 | . . . . 3 3 1 20 5 . 55 . . . . Heat Transferred 31650 | . . . . 2072 2009 1591 7509 1554 . 16915 . . . . Parts Sabotaged 6 | . . . . . . . . . . 2 . . . 4 Parts Stolen . | . . . . . . . . . . . . . . . Parts Stripped . | . . . . . . . . . . . . . . . Power Chain Reactions . | . . . . . . . . . . . . . . . Alert | -11 -10 -10 -9 -8 -8 -7 -7 -7 -7 -5 -4 -4 -4 -4 ------- Run | Yrd Mat Min Mat Mat Gar Fac Sto Rec Scr Fac Fac Upp Upp War Peak Influence 1135 | 30 73 101 199 206 529 481 554 125 . 1135 545 . . . Initial 543 | . 19 1 39 67 133 277 218 64 . . 543 . . . Average 258 | 15 35 80 79 60 281 224 334 103 . 384 543 . . . Maximum Alert Level 4 | . . . . 1 2 2 2 . . 4 2 . . . Low Security (%) 54 | 100 100 100 100 98 39 58 19 100 . 36 . . . . Level 1 23 | . . . . 1 38 36 44 . . 23 . . . . Level 2 15 | . . . . . 22 5 35 . . 18 100 . . . Level 3 5 | . . . . . . . . . . 16 . . . . Level 4 1 | . . . . . . . . . . 4 . . . . Level 5 . | . . . . . . . . . . . . . . . High Security . | . . . . . . . . . . . . . . . Max Security . | . . . . . . . . . . . . . . . Squads Dispatched 40 | . 1 . 1 4 . 3 11 . . 19 . . 1 . Investigation 4 | . 1 . . 1 . 1 . . . 1 . . . . Extermination 10 | . . . . . . 2 2 . . 6 . . . . Reinforcement 9 | . . . 1 2 . . 4 . . 2 . . . . Assault 9 | . . . . . . . 1 . . 7 . . 1 . Garrison 8 | . . . . 1 . . 4 . . 3 . . . . Intercept . | . . . . . . . . . . . . . . . Searches Triggered . | . . . . . . . . . . . . . . . Construction Impeded . | . . . . . . . . . . . . . . . Haulers Reinforced 1 | . . . . . . . 1 . . . . . . . Active Scanning Responses . | . . . . . . . . . . . . . . . Cargo Convoy Interrupts . | . . . . . . . . . . . . . . . Stealth | -11 -10 -10 -9 -8 -8 -7 -7 -7 -7 -5 -4 -4 -4 -4 --------- Run | Yrd Mat Min Mat Mat Gar Fac Sto Rec Scr Fac Fac Upp Upp War Distress Signals 10 | . . . . 1 . 2 4 . . 2 1 . . . Communications Jammed . | . . . . . . . . . . . . . . . Distress Signals . | . . . . . . . . . . . . . . . Times Spotted 312 | . 5 4 20 30 21 23 45 3 . 99 2 14 23 23 Peak Tracking Total 17 | . 4 1 11 8 4 6 8 2 . 15 2 7 11 17 Tactical Retreats 43 | . 1 1 3 . 2 3 4 . . 17 . 5 6 1 Traps | -11 -10 -10 -9 -8 -8 -7 -7 -7 -7 -5 -4 -4 -4 -4 ------- Run | Yrd Mat Min Mat Mat Gar Fac Sto Rec Scr Fac Fac Upp Upp War Traps Triggered 13 | . 4 . . 2 3 2 1 . . 1 . . . . Indirectly . | . . . . . . . . . . . . . . . Trap Hack Attempts . | . . . . . . . . . . . . . . . Triggered . | . . . . . . . . . . . . . . . Disarmed . | . . . . . . . . . . . . . . . Reprogrammed . | . . . . . . . . . . . . . . . Reused . | . . . . . . . . . . . . . . . Traps Extracted . | . . . . . . . . . . . . . . . Installed . | . . . . . . . . . . . . . . . Triggered 2 | . . . . . . . . . . . . . . 2 Machines | -11 -10 -10 -9 -8 -8 -7 -7 -7 -7 -5 -4 -4 -4 -4 ---------- Run | Yrd Mat Min Mat Mat Gar Fac Sto Rec Scr Fac Fac Upp Upp War Machines Disabled 7 | . . . 1 2 . . 2 . . 2 . . . . Max in Single Turn 1 | . . . 1 1 . . 1 . . 1 . . . . Garrison Access 1 | . . . . . . 1 . . . . . . . . Machines Repaired . | . . . . . . . . . . . . . . . Machines Dismantled 1 | . . . . . . . 1 . . . . . . . Machines Sabotaged . | . . . . . . . . . . . . . . . Overloaded Fab Kills . | . . . . . . . . . . . . . . . Hacking | -11 -10 -10 -9 -8 -8 -7 -7 -7 -7 -5 -4 -4 -4 -4 --------- Run | Yrd Mat Min Mat Mat Gar Fac Sto Rec Scr Fac Fac Upp Upp War Machines Accessed 34 | . 4 . 1 6 2 5 8 . 2 6 . . . . Terminals 21 | . 4 . 1 4 2 2 6 . . 2 . . . . Fabricators . | . . . . . . . . . . . . . . . Repair Stations 6 | . . . . . . 1 1 . . 4 . . . . Recycling Units 3 | . . . . 1 . 1 1 . . . . . . . Scanalyzers . | . . . . . . . . . . . . . . . Garrison Access 2 | . . . . 1 . 1 . . . . . . . . Total Hacks 93 | . 13 . 2 19 4 15 16 . 11 13 . . . . Successful 51 | . 7 . 1 11 2 7 10 . 11 2 . . . . Failed 41 | . 6 . 1 7 2 8 6 . . 11 . . . . Catastrophic 7 | . 1 . 1 . . 1 1 . . 3 . . . . Database Lockouts 1 | . . . . 1 . . . . . . . . . . Manual 55 | . 13 . 1 17 2 10 8 . . 4 . . . . Terminals 52 | . 13 . 2 14 4 6 9 . . 4 . . . . Fabricators . | . . . . . . . . . . . . . . . Repair Stations 16 | . . . . . . 2 5 . . 9 . . . . Recycling Units 10 | . . . . 4 . 4 2 . . . . . . . Scanalyzers . | . . . . . . . . . . . . . . . Garrison Access 4 | . . . . 1 . 3 . . . . . . . . Terminal Hacks 27 | . 4 . 1 4 1 2 4 . 11 . . . . . Record 11 | . . . . . . . . . 11 . . . . . Part Schematic 1 | . 1 . . . . . . . . . . . . . Robot Analysis 2 | . . . . 1 . 1 . . . . . . . . Open Door 3 | . . . . . 1 . 2 . . . . . . . Branch Access Points 3 | . 1 . . 1 . 1 . . . . . . . . Terminal Index 3 | . 1 . 1 1 . . . . . . . . . . Unreport Threat 4 | . 1 . . 1 . . 2 . . . . . . . Fabricator Hacks . | . . . . . . . . . . . . . . . Repair Station Hacks 8 | . . . . . . 2 4 . . 2 . . . . Scan Component 4 | . . . . . . 1 2 . . 1 . . . . Repair 4 | . . . . . . 1 2 . . 1 . . . . Recycling Unit Hacks 1 | . . . . 1 . . . . . . . . . . Report Inventory 1 | . . . . 1 . . . . . . . . . . Scanalyzer . | . . . . . . . . . . . . . . . Garrison Access Hacks 1 | . . . . 1 . . . . . . . . . . Unlock Access 1 | . . . . 1 . . . . . . . . . . Unauthorized Hacks 14 | . 3 . . 5 1 3 2 . . . . . . . Terminals 8 | . 3 . . 2 1 1 1 . . . . . . . Track 1 | . . . . . 1 . . . . . . . . . Botnet 7 | . 3 . . 2 . 1 1 . . . . . . . Fabricators . | . . . . . . . . . . . . . . . Repair Stations . | . . . . . . . . . . . . . . . Recycling Units 5 | . . . . 3 . 1 1 . . . . . . . Reject 2 | . . . . 1 . . 1 . . . . . . . Recyclers 2 | . . . . 1 . 1 . . . . . . . . Mask 1 | . . . . 1 . . . . . . . . . . Scanalyzers . | . . . . . . . . . . . . . . . Garrison Access 1 | . . . . . . 1 . . . . . . . . Jam 1 | . . . . . . 1 . . . . . . . . Data Cores Recovered . | . . . . . . . . . . . . . . . Used . | . . . . . . . . . . . . . . . Hacking Detections 29 | . 4 . 1 6 2 3 7 . . 6 . . . . Full Trace Events 1 | . 1 . . . . . . . . . . . . . Feedback Events . | . . . . . . . . . . . . . . . Feedback Blocked . | . . . . . . . . . . . . . . . Robot Schematics Acquired . | . . . . . . . . . . . . . . . Robots Built . | . . . . . . . . . . . . . . . Authchips . | . . . . . . . . . . . . . . . Time . | . . . . . . . . . . . . . . . Total Robot Build Rating . | . . . . . . . . . . . . . . . Part Schematics Acquired 1 | . 1 . . . . . . . . . . . . . Parts Built . | . . . . . . . . . . . . . . . Authchips . | . . . . . . . . . . . . . . . Time . | . . . . . . . . . . . . . . . Total Part Build Rating . | . . . . . . . . . . . . . . . Parts Repaired 4 | . . . . . . 1 2 . . 1 . . . . Time 146 | . . . . . . 44 88 . . 14 . . . . Parts Recycled . | . . . . . . . . . . . . . . . Recycled Matter . | . . . . . . . . . . . . . . . Retrieved Matter . | . . . . . . . . . . . . . . . Retrieved Components . | . . . . . . . . . . . . . . . Parts Scanalyzed . | . . . . . . . . . . . . . . . Part Schematics Acquired . | . . . . . . . . . . . . . . . Parts Damaged . | . . . . . . . . . . . . . . . Bothacking | -11 -10 -10 -9 -8 -8 -7 -7 -7 -7 -5 -4 -4 -4 -4 ------------ Run | Yrd Mat Min Mat Mat Gar Fac Sto Rec Scr Fac Fac Upp Upp War Used RIF Installer . | . . . . . . . . . . . . . . . Robots Hacked . | . . . . . . . . . . . . . . . Non-combat . | . . . . . . . . . . . . . . . Combat . | . . . . . . . . . . . . . . . Robot Hacks Applied . | . . . . . . . . . . . . . . . Relay Couplers Released . | . . . . . . . . . . . . . . . Fabnet Peak Effective % . | . . . . . . . . . . . . . . . Robots Rewired . | . . . . . . . . . . . . . . . Allies Hacked 1 | . . . . . 1 . . . . . . . . . Hacks Repelled . | . . . . . . . . . . . . . . . Allies | -11 -10 -10 -9 -8 -8 -7 -7 -7 -7 -5 -4 -4 -4 -4 -------- Run | Yrd Mat Min Mat Mat Gar Fac Sto Rec Scr Fac Fac Upp Upp War Total Allies 11 | . . . . . 1 . 10 . . . . . . . Largest Group 10 | . . . . . 1 . 10 . . . . . . . Highest-Rated Group 173 | . . . . . 20 . 173 . . . . . . . Highest-Rated Ally 29 | . . . . . 20 . 29 . . . . . . . Total Orders 6 | . . . . . . . 3 . . . 2 1 . . EXPLORE 5 | . . . . . . . 3 . . . 1 1 . . RETURN 1 | . . . . . . . . . . . 1 . . . Ally Attacks 22 | . . . . . 4 . 18 . . . . . . . Total Damage 367 | . . . . . 170 . 197 . . . . . . . Kills 2 | . . . . . 2 . . . . . . . . . Allies Corrupted 2 | . . . . . . . . . . . 1 1 . . Allies Melted . | . . . . . . . . . . . . . . . Intel | -11 -10 -10 -9 -8 -8 -7 -7 -7 -7 -5 -4 -4 -4 -4 ------- Run | Yrd Mat Min Mat Mat Gar Fac Sto Rec Scr Fac Fac Upp Upp War Robot Analysis Total 2 | . . . . 1 . 1 . . . . . . . . Derelict Logs Recovered 1 | . . . . . . . . . . . . 1 . . Drone Launches 13 | . . . . . . . 3 . . . 7 3 . . Drone Recoveries 3 | . . . . . . . 2 . . . 1 . . . Exploration | -11 -10 -10 -9 -8 -8 -7 -7 -7 -7 -5 -4 -4 -4 -4 ------------- Run | Yrd Mat Min Mat Mat Gar Fac Sto Rec Scr Fac Fac Upp Upp War Turns Passed 12860 | 238 259 73 568 1349 828 1527 1483 226 2158 3340 111 289 235 176 Spaces Moved 7292 | 141 194 35 229 792 369 605 547 94 1502 1615 178 429 339 223 Core 218 | 1 . . . . . . . . . 61 . . 30 126 Treads 2 | . . . . . 2 . . . . . . . . . Legs 920 | 140 194 35 181 . . 370 . . . . . . . . Wheels 4767 | . . . 48 792 367 235 547 94 1502 1182 . . . . Hover 1110 | . . . . . . . . . . 97 178 429 309 97 Flight 275 | . . . . . . . . . . 275 . . . . Fastest Speed 35 | 50 120 120 105 105 135 105 115 115 140 41 35 38 38 50 Average Speed 124 | 119 120 120 159 134 146 172 131 139 141 126 46 51 57 63 Slowest Speed 312 | 120 120 120 190 190 312 215 145 145 145 220 106 100 150 156 Overloaded Moves 19 | . . . . . . . . . . 19 . . . . Propulsion Burnouts . | . . . . . . . . . . . . . . . Robots Hopped 4 | . . . . . . . . . . 4 . . . . Cave-ins Triggered . | . . . . . . . . . . . . . . . Exploration Rate (%) 39 | 9 31 18 25 49 54 17 65 20 91 36 7 69 66 32 Regions Visited 14 Branch Regions 7 Pre-discovered Areas . | . . . . . . . . . . . . . . . Known Exits Taken 6 | . 1 . . 1 . 1 1 1 1 . . . . . Unknown Exits Taken 7 | 1 . 1 1 . . . . . . 1 1 1 1 . Scrap Searched 9 | . . . . . . . . . 3 . . 3 3 . Spaces Dug . | . . . . . . . . . . . . . . . Terrain Destroyed 9 | . . . . . . . . . . 6 3 . . . Melee . | . . . . . . . . . . . . . . . Projectile 9 | . . . . . . . . . . 6 3 . . . AOE . | . . . . . . . . . . . . . . . Terrain Rammed . | . . . . . . . . . . . . . . . Walls Destroyed . | . . . . . . . . . . . . . . . Machines Disabled . | . . . . . . . . . . . . . . . Actions | -11 -10 -10 -9 -8 -8 -7 -7 -7 -7 -5 -4 -4 -4 -4 --------- Run | Yrd Mat Min Mat Mat Gar Fac Sto Rec Scr Fac Fac Upp Upp War Total 9645 | 174 214 55 351 976 526 969 1065 145 1532 2344 198 466 372 258 Wait 1061 | 4 8 13 49 54 29 216 318 9 . 307 2 5 19 28 Move 7268 | 140 193 34 228 791 366 604 546 93 1501 1606 177 428 338 223 Hop 4 | . . . . . . . . . . 4 . . . . Pick Up 125 | 4 1 2 12 26 13 12 16 5 5 20 2 2 3 2 Fast Attach 93 | 7 . . 4 3 . 10 12 3 3 33 8 6 3 1 Attach 68 | . . . 2 3 9 11 11 3 1 27 . . . 1 Detach 22 | . . . 1 . . 4 1 2 2 9 . . 2 1 Swap 105 | . 1 . 6 17 9 20 22 2 7 20 1 . . . Drop 134 | . 1 . 5 22 10 21 17 5 13 29 3 4 2 2 Fire 705 | 18 7 6 44 60 72 70 114 23 . 289 2 . . . Melee 26 | . . . . . . . . . . . . 21 5 . Ram . | . . . . . . . . . . . . . . . Kick 5 | 1 3 . . . . 1 . . . . . . . . Crush . | . . . . . . . . . . . . . . . Escape Stasis 18 | . . . . . 18 . . . . . . . . . Rewire . | . . . . . . . . . . . . . . . Trap . | . . . . . . . . . . . . . . . Miscellaneous 11 | . . . . . . . 8 . . . 3 . . . Route ------- -11/Scrapyard -10/Materials (discovered 2 exits: *Min x2) -10/Mines -9/Materials -8/Materials (discovered 2 exits: *Fac / Gar) -8/Garrison (discovered 2 exits: *Fac x2) -7/Factory (discovered 4 exits: *Sto x2 / Low x2) -7/Storage -7/Recycling -7/Scraptown (discovered 2 exits: *Fac x2) -5/Factory -4/Factory -4/Upper Caves -4/Upper Caves -4/Warlord History --------- Turn | Location | Event 2 | -11/Scrapyard | Met Revision 17 7 | -11/Scrapyard | Discovered new exit (range 16) 239 | -11/Scrapyard | Entered Materials 314 | -10/Materials | Build established: Mutant 462 | -10/Materials | Identified exit to Mines 498 | -10/Materials | Entered Mines 543 | -10/Mines | Discovered new exit (range 15) 571 | -10/Mines | Entered Materials 571 | -9/Materials | Evolved 2 slots: Propulsion x1, Utility x1 1129 | -9/Materials | Discovered new exit (range 10) 1139 | -9/Materials | Entered another Materials area 1139 | -8/Materials | Evolved 2 slots: Propulsion x1, Utility x1 1308 | -8/Materials | Central database locked down 1693 | -8/Materials | Discovered new exit (range 16) 1799 | -8/Materials | Build established: Scavenger-Mutant 2459 | -8/Materials | Garrison activated, responded to threat 2486 | -8/Materials | Identified exit to Garrison 2488 | -8/Materials | Entered Garrison 2506 | -8/Garrison | Triggered checkpoint 2604 | -8/Garrison | Lost 9 parts (1p3n1u4w) 2740 | -8/Garrison | Triggered checkpoint 2806 | -8/Garrison | Triggered checkpoint 2888 | -8/Garrison | Rescued a captive Derelict 2972 | -8/Garrison | Discovered new exit (range 8) 2985 | -8/Garrison | Attempted to access garrison exit controls, blocked by remote lockdown 3056 | -8/Garrison | Triggered checkpoint 3124 | -8/Garrison | Triggered checkpoint 3234 | -8/Garrison | Discovered new exit (range 15) 3278 | -8/Garrison | Core integrity fell below 50% 3316 | -8/Garrison | Entered Factory 3316 | -7/Factory | Evolved 2 slots: Utility x2 3994 | -7/Factory | Build established: Mutant 4020 | -7/Factory | Identified exit to Storage 4020 | -7/Factory | Identified exit to Lower Caves 4172 | -7/Factory | Lost 3 parts (1p2w) 4435 | -7/Factory | Build established: Scavenger-Mutant 4653 | -7/Factory | Repaired Lyr. Light Armor Plating 4843 | -7/Factory | Entered Storage 4915 | -7/Storage | Repaired Arm. Huge Wheel 5404 | -7/Storage | Garrison activated, responded to threat 5663 | -7/Storage | Repaired Arm. Huge Wheel? 5938 | -7/Storage | Garrison activated, responded to threat 5967 | -7/Storage | Core integrity fell below 50% 6021 | -7/Storage | Build established: Mutant 6026 | -7/Storage | Destroyed 7 combat bots 6030 | -7/Storage | Lost 6 parts (1p3u2w) 6043 | -7/Storage | First assault squad dispatched 6077 | -7/Storage | Assisted by bots powering up and referring to "LRC-V3" 6138 | -7/Storage | Lost 10 allies 6299 | -7/Storage | Core integrity fell below 20% 6321 | -7/Storage | Used back door to open Recycling access 6321 | -7/Storage | Discovered new exit (range 5) 6325 | -7/Storage | Identified exit to Recycling 6326 | -7/Storage | Entered Recycling 6338 | -7/Recycling | Lost 4 parts (2n2u) 6391 | -7/Recycling | Build established: Scavenger-Mutant 6442 | -7/Recycling | Lost 3 parts (1p1u1w) 6517 | -7/Recycling | Scanned before Scraplab entrance 6538 | -7/Recycling | Entered Scraplab 6549 | -7/Recycling | Discovered new exit (range 3) 6551 | -7/Recycling | Identified exit to Scraptown 6552 | -7/Recycling | Entered Scraptown 6552 | -7/Scraptown | System corruption cleaned by C-Scrubber 6747 | -7/Scraptown | Heard Great Nut preacher, LISTEN AND RECITE! 6847 | -7/Scraptown | Discovered new exit (range 11) 6938 | -7/Scraptown | Identified exit to Factory 6993 | -7/Scraptown | Visited Red Mages 7050 | -7/Scraptown | Visited Cyclists 7148 | -7/Scraptown | Visited Spacefarers 7177 | -7/Scraptown | Visited Assassins FH 7234 | -7/Scraptown | Visited TADAMA 7528 | -7/Scraptown | Visited UFD Registry 7528 | -7/Scraptown | Registered with UFD as "Flakroller" 7548 | -7/Scraptown | Visited SPCMW 7594 | -7/Scraptown | Visited Fellowship of the Rings 7673 | -7/Scraptown | Entered Cyclist Reading Room 7766 | -7/Scraptown | Visited Chapter 10 7815 | -7/Scraptown | Visited Research Penetration Think Tank 7846 | -7/Scraptown | Visited Scrapoid Pod Storage 8111 | -7/Scraptown | Visited Supply Room 8185 | -7/Scraptown | Visited A0-MCA Data Center 8194 | -7/Scraptown | Given a B+ rating by A0-MCA 8197 | -7/Scraptown | Found A0-MCA's Component Scanner 8216 | -7/Scraptown | Visited Junk Repository 8263 | -7/Scraptown | Visited Junk Repository 8304 | -7/Scraptown | Visited Observation Area 8339 | -7/Scraptown | Visited Cartography Club 8485 | -7/Scraptown | Found Scrap Suit 8492 | -7/Scraptown | Found Scrap Suit 8532 | -7/Scraptown | Build established: Hacker-Mutant 8551 | -7/Scraptown | Discovered exit to Factory (range 3) 8710 | -7/Scraptown | Entered Factory 8710 | -5/Factory | Evolved 4 slots: Power x1, Utility x3 8903 | -5/Factory | Garrison activated, responded to threat 8943 | -5/Factory | Lost 3 parts (1p2u) 9358 | -5/Factory | Build established: Scavenger-Mutant 9592 | -5/Factory | Repaired Hrd. Heavy Armor Plating 10362 | -5/Factory | System corruption reached 10% 10810 | -5/Factory | First assault squad dispatched 11405 | -5/Factory | Lost 4 parts (1n3u) 11804 | -5/Factory | Core integrity fell below 50% 11811 | -5/Factory | System corruption reached 30% 11816 | -5/Factory | Released all parts (6) 11844 | -5/Factory | Lost 12 parts (4p1n5u2w) 12005 | -5/Factory | Lost 3 parts (1n2u) 12010 | -5/Factory | Discovered new exit (range 10) 12050 | -5/Factory | Entered another Factory area 12050 | -4/Factory | Evolved 2 slots: Utility x1, Weapon x1 12052 | -4/Factory | Build established: Mutant 12101 | -4/Factory | Discovered new exit (range 32) 12161 | -4/Factory | Entered Upper Caves 12161 | -4/Upper Caves | Accompanied by 5 allies 12197 | -4/Upper Caves | Learned 4 Research zone layouts 12269 | -4/Upper Caves | Attracted the attention of an 0b10 outpost 12398 | -4/Upper Caves | Lost 4 allies 12411 | -4/Upper Caves | Discovered new exit (range 11) 12420 | -4/Upper Caves | Encountered a Warlord checkpoint 12450 | -4/Upper Caves | Entered another Upper Caves area 12450 | -4/Upper Caves | Accompanied by 2 allies 12454 | -4/Upper Caves | Attracted the attention of an 0b10 outpost 12627 | -4/Upper Caves | Core integrity fell below 50% 12644 | -4/Upper Caves | Lost 7 parts (3n3u1w) 12677 | -4/Upper Caves | Core integrity fell below 20% 12678 | -4/Upper Caves | Discovered new exit (range 15) 12685 | -4/Upper Caves | Entered Warlord 12730 | -4/Warlord | Rebuked by Warlord 12755 | -4/Warlord | Warlord's base attacked by MAIN.C 12861 | -4/Warlord | Destroyed by P-80 Master with Gamma Rifle Last Messages --------------- 12752_ 0A-EOX(m) fits Backup Power III on Cogmind. 12755_ ANNOUNCEMENT: MAIN.C incursion imminent. Mobilizing sentries. 12756_ 0A-EOX(m) fits Backup Propulsion III on Cogmind. 12765_ ANNOUNCEMENT: Southeast cave walls breached. 12785_ Acquired Dispersion Rifle. 12845_ ANNOUNCEMENT: MAIN.C reinforcements approaching through caves, arriving soon. 12849_ G-67 Veteran IFF system glitched. 12851_ Backup Power III destroyed. 12852_ G-67 Veteran misfires. 12855_ ANNOUNCEMENT: Detected 2 Melee squads, 1 Saboteur squad, 1 Programmer squad. 12858_ Hrd. Light Armor Plating blown off. 12858_ Backup Propulsion III blown off. 12858_ Backup Propulsion III disintegrated. 12858_ E-15 Imp destroyed. 12859_ Backup Propulsion III destroyed. 12859_ Backup Power III blown off. 12859_ Backup Power III disintegrated. 12859_ Adv. Cryofiber Web blown off. Map ----- +----------------------------------------------------+ | ?????????????????# ##??? #?? | | ??????????????????# #??? ##? | | ###????????????????# ##?? #? | | "############??????# ### #?? | | """"""""""""#???????# # #??? | | """"""""""""#?####?## #???? | | ### ### ##??? | | + ## #??? | | ^+ #### #??? | | #### ##??# #??? | | """"""""""""#??## #???; ##?? | | """"""""""""#???# #?##; #?? | | "############???# #### ;%% #?? | | ###?????????????## #?# #?? | | ???????????????## ### #?? | | ?????????????### ### ##?? | | ?????????????# #?# #??? | | ????????????## ##?## ##??? | | ????????????# #??## #???? | | ?????????????# #???# ###?? | | ????????????## #??### %#;??? | | ????????????# #??#;; ###? | | ????????????# #?##; =[bi ## | | ????????????# ###; *%gil < | | ????????????# # ### gpl[b < | | ???????????# #### #; @pbb##? | | ?????????? ???## ## e/ p; #? | | ???????? ????# ##e%=;;##? | | ???????# ##?????## !! # #?? | | ???????####????????### ####?? | | ?????????????????????######????? | | ???????????????????????????????? | | ???????????????????????????????? | | ???????????????????????????????? | | ???????????????????????????????? | | ???????????????????????????????? | | ???????????????????????????????? | | ???????????????????????????????? | | ???????????????????????????????? | | ???????????????????????????????? | | ???????????????????????????????? | | ???????????????????????????????? | | ???????????????????????????????? | | ???????????????????????????????? | | ???????????????????????????????? | | ???????????????????????????????? | | ???????????????????????????????? | | | | | | | +----------------------------------------------------+ Best States ------------- Heat Dissipation 73 Energy Generation 31 Energy Capacity 360 Matter Stores 300 Matter Capacity 300 Sight Range 16 Robot Scan Range 15 Terrain Scan Density 10 Base Temperature (-) 200 Armor Coverage 750 Resistance: TH 10 Resistance: EM 15 Utility Shielding 66 Weapon Shielding 33 Evasion (%) 69 Melee Accuracy 6 Target Analysis 8 Armor Integrity Analysis 30 Recoil Reduction 3 Particle Charging 20 Salvage Targeting 4 Offensive Hacking 10 Defensive Hacking 11 Item Schematics ----------------- Huge Storage Unit | -10/Materials | Hacked Robot Schematics ------------------ None Fabricated ------------ Nothing Alien Tech Used ----------------- None Achievements -------------- Gun Specialist Challenges ------------ None Game ------ Seed ArmorDroneGun Manual? 0 Play Time 03:23:42 Cumulative 65.6 hours Start 2024.11.18 @ 22:40:22 End 2024.11.28 @ 15:31:34 Sessions 15 Manual Loads 0 Difficulty Rogue Special Mode None Game No. 38 Rogue 34 Adventurer 2 Explorer 2 Win Type - Total 0 Types 0/0/0/0/0/0/0/0/0 Lore% 43 Gallery% 43 Achievement% 35 Wizard Run 0 Options --------- Layout 0 ASCII 0 Keyboard 1 Movement Arrows Keybinds 0 Fullscreen 2 Font 18/Terminus Map View 76x50 Zoom Use 0% Tactical HUD 1 Map Filters NONE Filters NONE Steam 1 RUN: 8031007d-5f3c-424c-8abb-fb0107e4aeab